bitfinex/quotes_BTCUSD_20241021
["timestamp","ask_amount","ask_price","bid_price","bid_amount"]
[1729546919855,6.67839598,67782.0,67781.0,0.000827]
[1729546920062,6.78865507,67782.0,67781.0,0.000827]
[1729546920969,6.77487713,67782.0,67781.0,0.000827]
[1729546921181,6.78866118,67782.0,67781.0,0.000827]
[1729546922016,6.67840209,67782.0,67781.0,0.000827]
[1729546922494,6.78866118,67782.0,67781.0,0.000827]
[1729546923633,6.61056118,67782.0,67781.0,0.000827]
[1729546923876,6.59677713,67782.0,67781.0,0.000827]
[1729546924089,6.61056622,67782.0,67781.0,0.000827]
[1729546924294,6.61056652,67782.0,67781.0,0.000827]
[1729546925599,6.50030743,67782.0,67781.0,0.000827]
[1729546929232,6.50030743,67782.0,67781.0,0.000827]
[1729546931519,6.38857657,67782.0,67781.0,0.000827]
[1729546931734,6.50030743,67782.0,67781.0,0.000827]
[1729546935708,6.37478718,67782.0,67781.0,0.000827]
[1729546935923,6.38861761,67782.0,67781.0,0.000827]
[1729546936134,6.3881965,67782.0,67781.0,0.000827]
[1729546937709,6.3882345,67782.0,67781.0,0.000827]
[1729546938595,6.5357655,67782.0,67781.0,0.000827]
[1729546939670,6.3882345,67782.0,67781.0,0.000827]
[1729546939872,6.5357655,67782.0,67781.0,0.000827]
[1729546940265,6.3882345,67782.0,67781.0,0.000827]
[1729546940511,6.52066177,67782.0,67781.0,0.000827]
[1729546940722,6.7489284,67782.0,67781.0,0.000827]
[1729546941150,6.76403213,67782.0,67781.0,0.000827]
[1729546941290,6.61650113,67782.0,67781.0,0.000827]
[1729546942630,6.61684047,67782.0,67781.0,0.000827]
[1729546943459,6.76437147,67782.0,67781.0,0.000827]
[1729546944464,6.61684047,67782.0,67781.0,0.000827]
[1729546945784,6.60301004,67782.0,67781.0,0.000827]
[1729546947262,6.75054104,67782.0,67781.0,0.000827]
[1729546947820,6.75101866,67782.0,67781.0,0.000827]
[1729546948518,6.60349538,67782.0,67781.0,0.093827]
[1729546948699,6.38863436,67782.0,67781.0,0.093827]
[1729546948947,6.22528802,67782.0,67781.0,0.093827]
[1729546949617,6.38866075,67782.0,67781.0,0.093827]
[1729546952876,6.22528802,67782.0,67781.0,0.093827]
[1729546953117,6.38855439,67782.0,67781.0,0.093827]
[1729546954210,6.38855439,67782.0,67781.0,0.098827]
[1729546954211,6.29039948,67782.0,67781.0,0.098827]
[1729546954428,6.0828899,67782.0,67781.0,0.32426]
[1729546954662,6.016564,67782.0,67781.0,0.32426]
[1729546954894,6.016564,67782.0,67781.0,0.32626]
[1729546955794,6.008564,67782.0,67781.0,0.32626]
[1729546956003,6.001564,67782.0,67781.0,0.32626]
[1729546956220,6.009564,67782.0,67781.0,0.32626]
[1729546956436,6.008564,67782.0,67781.0,0.32626]
[1729546956871,6.002564,67782.0,67781.0,0.32726]
[1729546957792,6.003564,67782.0,67781.0,0.33026]
[1729546966275,6.003564,67782.0,67781.0,0.32826]
[1729546966495,6.003564,67782.0,67781.0,0.33026]
[1729546973349,6.003564,67782.0,67781.0,0.41188584]
[1729546973566,6.003564,67782.0,67781.0,0.40988584]
[1729546973996,6.003564,67782.0,67781.0,0.33026]
[1729546974647,6.003564,67782.0,67781.0,0.45199086]
[1729546975331,6.003564,67782.0,67781.0,0.44999086]
[1729546976012,6.003564,67782.0,67781.0,0.45199086]
[1729546976476,6.003564,67782.0,67781.0,0.44999086]
[1729546976900,6.003564,67782.0,67781.0,0.45199086]
[1729546981786,6.003564,67782.0,67781.0,0.34026]
[1729546990514,6.003564,67782.0,67781.0,0.34526]
[1729546991806,6.003564,67782.0,67781.0,0.25036]
[1729546992143,6.003564,67782.0,67781.0,0.16236]
[1729546992808,6.002564,67782.0,67781.0,0.15936]
[1729546993260,6.001564,67782.0,67781.0,0.15836]
[1729546993477,6.002564,67782.0,67781.0,0.15936]
[1729546994783,6.002564,67782.0,67781.0,0.16236]
[1729546995203,6.002564,67782.0,67781.0,0.15936]
[1729546995628,6.002564,67782.0,67781.0,0.16236]
[1729546997335,6.002564,67782.0,67781.0,0.16436]
[1729547010041,6.002564,67782.0,67781.0,0.16236]
[1729547011193,6.002564,67782.0,67781.0,0.16436]
[1729547011629,6.002564,67782.0,67781.0,0.16236]
[1729547012316,6.002564,67782.0,67781.0,0.16436]
[1729547027904,6.178264,67782.0,67781.0,0.15736]
[1729547028117,6.34106083,67782.0,67781.0,0.004827]
[1729547028327,6.51159183,67782.0,67781.0,0.004827]
[1729547028830,6.51059183,67782.0,67781.0,0.003827]
[1729547029059,6.95886338,67782.0,67781.0,0.003827]
[1729547029718,6.95886338,67782.0,67781.0,0.000827]
[1729547030387,6.96786338,67782.0,67781.0,0.000827]
[1729547030810,7.04886338,67782.0,67781.0,0.000827]
[1729547031030,7.05386338,67782.0,67781.0,0.000827]
[1729547031243,7.07286338,67782.0,67781.0,0.000827]
[1729547032812,7.07191924,67782.0,67781.0,0.000827]
[1729547033269,7.0719214,67782.0,67781.0,0.000827]
[1729547035532,6.97605278,67782.0,67781.0,0.000827]
[1729547037733,6.843529,67782.0,67781.0,0.000827]
[1729547039197,6.82969132,67782.0,67781.0,0.000827]
[1729547039419,6.843465,67782.0,67781.0,0.000827]
[1729547040337,8.098165,67782.0,67781.0,0.000827]
[1729547040549,8.51255932,67782.0,67781.0,0.000827]
[1729547040777,8.62429018,67782.0,67781.0,0.000827]
[1729547041008,8.62429018,67782.0,67775.0,0.000827]
[1729547041009,0.147544,67776.0,67775.0,0.000827]
[1729547041217,0.77899435,67776.0,67775.0,0.000827]
[1729547041466,0.93669654,67776.0,67775.0,0.000827]
[1729547041721,0.82322286,67776.0,67775.0,0.000827]
[1729547041927,0.83698434,67776.0,67775.0,0.000827]
[1729547042133,0.94712068,67776.0,67775.0,0.000827]
[1729547042346,0.84998434,67776.0,67775.0,0.000827]
[1729547042564,0.96011662,67776.0,67775.0,0.000827]
[1729547043033,0.84998434,67776.0,67775.0,0.000827]
[1729547043244,0.96011726,67776.0,67775.0,0.000827]
[1729547043466,0.84998434,67776.0,67775.0,0.000827]
[1729547044144,0.96008381,67776.0,67775.0,0.000827]
[1729547044362,0.97108381,67776.0,67775.0,0.000827]
[1729547045858,0.97107921,67776.0,67775.0,0.000827]
[1729547046206,0.71823731,67776.0,67775.0,0.000827]
[1729547046434,0.77736159,67776.0,67775.0,0.000827]
[1729547046671,0.63503215,67776.0,67775.0,0.000827]
[1729547046899,0.81955962,67776.0,67775.0,0.000827]
[1729547049352,0.73150808,67776.0,67775.0,0.000827]
[1729547049756,0.81956141,67776.0,67775.0,0.000827]
[1729547049996,0.73150808,67776.0,67775.0,0.000827]
[1729547050452,0.77735533,67776.0,67775.0,0.000827]
[1729547050668,0.77735836,67776.0,67775.0,0.000827]
[1729547051109,0.88745783,67776.0,67775.0,0.000827]
[1729547051326,0.77735836,67776.0,67775.0,0.000827]
[1729547051762,0.86537805,67776.0,67775.0,0.000827]
[1729547051988,0.77735836,67776.0,67775.0,0.000827]
[1729547052213,0.86537458,67776.0,67775.0,0.000827]
[1729547052440,0.77735836,67776.0,67775.0,0.000827]
[1729547052660,0.61484296,67776.0,67775.0,0.000827]
[1729547052887,0.62124661,67776.0,67775.0,0.000827]
[1729547053132,0.6350147,67776.0,67775.0,0.000827]
[1729547053355,0.68087267,67776.0,67775.0,0.000827]
[1729547053974,0.77729881,67776.0,67775.0,0.000827]
[1729547054181,0.86531141,67776.0,67775.0,0.000827]
[1729547055957,0.86533351,67776.0,67775.0,0.000827]
[1729547056862,0.61486007,67776.0,67775.0,0.000827]
[1729547057081,0.77731876,67776.0,67775.0,0.000827]
[1729547057286,0.8653387,67776.0,67775.0,0.000827]
[1729547057712,0.85157061,67776.0,67775.0,0.000827]
[1729547057918,0.86537785,67776.0,67775.0,0.000827]
[1729547058350,0.61489922,67776.0,67775.0,0.000827]
[1729547058558,0.86536977,67776.0,67775.0,0.000827]
[1729547058985,0.865379,67776.0,67775.0,0.000827]
[1729547060514,0.85157176,67776.0,67775.0,0.000827]
[1729547060746,0.86538784,67776.0,67775.0,0.000827]
[1729547061144,0.77736749,67776.0,67775.0,0.000827]
[1729547063342,0.77743746,67776.0,67775.0,0.000827]
[1729547063553,0.78243746,67776.0,67775.0,0.000827]
[1729547063774,0.89251028,67776.0,67775.0,0.000827]
[1729547063993,0.78077942,67776.0,67775.0,0.000827]
[1729547064212,0.88751028,67776.0,67775.0,0.000827]
[1729547065730,0.77743746,67776.0,67775.0,0.000827]
[1729547065928,0.67743746,67776.0,67775.0,0.000827]
[1729547066833,0.78758121,67776.0,67775.0,0.000827]
[1729547067314,0.67743746,67776.0,67775.0,0.000827]
[1729547068465,0.67744624,67776.0,67775.0,0.000827]
[1729547068691,0.66362138,67776.0,67775.0,0.000827]
[1729547069137,0.67744628,67776.0,67775.0,0.000827]
[1729547069823,0.80953366,67776.0,67775.0,0.000827]
[1729547070689,0.67744628,67776.0,67775.0,0.000827]
[1729547071373,0.87624628,67776.0,67775.0,0.000827]
[1729547071814,0.77744628,67776.0,67775.0,0.000827]
[1729547072315,0.77744853,67776.0,67775.0,0.000827]
[1729547073355,0.61491913,67776.0,67775.0,0.000827]
[1729547073593,0.77794521,67776.0,67775.0,0.000827]
[1729547078454,0.77812857,67776.0,67775.0,0.000827]
[1729547080066,0.77812946,67776.0,67775.0,0.000827]
[1729547083175,0.77812946,67776.0,67775.0,0.00076387]
[1729547087083,0.76430142,67776.0,67775.0,0.00076387]
[1729547087520,0.77812719,67776.0,67775.0,0.00076387]
[1729547088562,0.77820948,67776.0,67775.0,0.00076387]
[1729547090897,0.76438371,67776.0,67775.0,0.00076387]
[1729547091314,0.77820847,67776.0,67775.0,0.00076387]
[1729547093851,0.77820715,67776.0,67775.0,0.00076387]
[1729547094316,0.77820715,67776.0,67775.0,0.09986387]
[1729547094520,0.92750929,67776.0,67775.0,0.09986387]
[1729547094724,0.77820715,67776.0,67775.0,0.18276387]
[1729547098096,0.92748399,67776.0,67775.0,0.18276387]
[1729547098302,0.91365923,67776.0,67775.0,0.18276387]
[1729547098519,0.92747868,67776.0,67775.0,0.18276387]
[1729547098716,0.92913268,67776.0,67775.0,0.18276387]
[1729547100606,0.77985584,67776.0,67775.0,0.18276387]
[1729547102400,0.77983245,67776.0,67775.0,0.18276387]
[1729547102608,0.9291099,67776.0,67775.0,0.18276387]
[1729547103075,0.9291099,67776.0,67775.0,0.09986387]
[1729547103715,0.77983245,67776.0,67775.0,0.09986387]
[1729547104808,0.766013,67776.0,67775.0,0.09986387]
[1729547105020,0.77983127,67776.0,67775.0,0.09986387]
[1729547107004,0.92910537,67776.0,67775.0,0.09986387]
[1729547107215,0.77983127,67776.0,67775.0,0.09986387]
[1729547113142,0.766013,67776.0,67775.0,0.09986387]
[1729547113390,0.77983023,67776.0,67775.0,0.09986387]
[1729547114019,0.92910632,67776.0,67775.0,0.09986387]
[1729547114900,0.77983023,67776.0,67775.0,0.09986387]
[1729547116509,0.76601166,67776.0,67775.0,0.09986387]
[1729547116716,0.77983067,67776.0,67775.0,0.09986387]
[1729547117912,0.77982609,67776.0,67775.0,0.09986387]
[1729547120072,0.76600708,67776.0,67775.0,0.09986387]
[1729547120503,0.77982752,67776.0,67775.0,0.09986387]
[1729547123689,0.76600708,67776.0,67775.0,0.09986387]
[1729547123901,0.77983065,67776.0,67775.0,0.09986387]
[1729547131465,0.66809979,67776.0,67775.0,0.09986387]
[1729547133207,0.66812993,67776.0,67775.0,0.09986387]
[1729547134957,0.65430636,67776.0,67775.0,0.09986387]
[1729547135188,0.66813477,67776.0,67775.0,0.09986387]
[1729547138170,0.50484353,67776.0,67775.0,0.09986387]
[1729547138329,0.66815242,67776.0,67775.0,0.09986387]
[1729547138530,0.65432401,67776.0,67775.0,0.09986387]
[1729547138746,0.66815156,67776.0,67775.0,0.09986387]
[1729547139794,0.81746856,67776.0,67775.0,0.09986387]
[1729547140210,0.66815156,67776.0,67775.0,0.09986387]
[1729547142132,0.81747629,67776.0,67775.0,0.09986387]
[1729547142341,0.66815156,67776.0,67775.0,0.09986387]
[1729547145858,0.81746951,67776.0,67775.0,0.09986387]
[1729547146136,0.81746864,67776.0,67775.0,0.09986387]
[1729547146579,0.66815069,67776.0,67775.0,0.09986387]
[1729547148344,0.6681537,67776.0,67775.0,0.09986387]
[1729547154358,0.81748229,67776.0,67775.0,0.09986387]
[1729547154797,0.6681537,67776.0,67775.0,0.09986387]
[1729547158235,0.81747557,67776.0,67775.0,0.09986387]
[1729547158446,0.81747848,67776.0,67775.0,0.09986387]
[1729547159546,0.81747898,67776.0,67775.0,0.09986387]
[1729547159758,0.66815947,67776.0,67775.0,0.09986387]
[1729547162098,0.64815576,67776.0,67775.0,0.09986387]
[1729547165985,0.62515576,67776.0,67775.0,0.09986387]
[1729547166515,0.64815576,67776.0,67775.0,0.09986387]
[1729547167540,0.63432908,67776.0,67775.0,0.09986387]
[1729547167793,0.64815375,67776.0,67775.0,0.09986387]
[1729547169143,0.79745722,67776.0,67775.0,0.09986387]
[1729547169570,0.77445722,67776.0,67775.0,0.09986387]
[1729547169812,0.79745731,67776.0,67775.0,0.09986387]
[1729547170067,0.64815375,67776.0,67775.0,0.09986387]
[1729547172643,0.64810219,67776.0,67775.0,0.09986387]
[1729547177853,0.75983305,67776.0,67775.0,0.09986387]
[1729547178290,0.74600838,67776.0,67775.0,0.09986387]
[1729547178545,0.75982786,67776.0,67775.0,0.09986387]
[1729547179191,0.59656546,67776.0,67775.0,0.09986387]
[1729547179393,0.75982605,67776.0,67775.0,0.09986387]
[1729547179616,0.75982984,67776.0,67775.0,0.09986387]
[1729547180142,0.75982984,67776.0,67775.0,0.18036387]
[1729547180570,0.90910029,67776.0,67775.0,0.18036387]
[1729547180990,0.74583591,67776.0,67775.0,0.18036387]
[1729547181746,0.90910518,67776.0,67775.0,0.18036387]
[1729547182173,0.8952857,67776.0,67775.0,0.18036387]
[1729547182390,0.90910617,67776.0,67775.0,0.18036387]
[1729547182642,0.75983347,67776.0,67775.0,0.18036387]
[1729547184860,0.75983492,67776.0,67775.0,0.18036387]
[1729547185914,0.63428359,67776.0,67775.0,0.18036387]
[1729547186136,0.64810517,67776.0,67775.0,0.18036387]
[1729547187352,0.75983603,67776.0,67775.0,0.18036387]
[1729547189743,0.74601445,67776.0,67775.0,0.18036387]
[1729547190629,0.63428359,67776.0,67775.0,0.18036387]
[1729547190843,0.74601445,67776.0,67775.0,0.18036387]
[1729547191055,0.75983868,67776.0,67775.0,0.18036387]
[1729547191563,0.74601445,67776.0,67775.0,0.18036387]
[1729547192218,0.75983845,67776.0,67775.0,0.18036387]
[1729547194045,0.759853,67776.0,67775.0,0.18036387]
[1729547197181,0.64812214,67776.0,67775.0,0.18036387]
[1729547197413,0.759853,67776.0,67775.0,0.18036387]
[1729547197625,0.65312214,67776.0,67775.0,0.18036387]
[1729547197844,0.764853,67776.0,67775.0,0.18036387]
[1729547199393,0.751029,67776.0,67775.0,0.18036387]
[1729547199603,0.76485215,67776.0,67775.0,0.18036387]
[1729547200870,0.64812129,67776.0,67775.0,0.18036387]
[1729547201086,0.76485215,67776.0,67775.0,0.18036387]
[1729547202214,0.91413233,67776.0,67775.0,0.18036387]
[1729547202431,0.76485215,67776.0,67775.0,0.18036387]
[1729547202637,0.91413233,67776.0,67775.0,0.18036387]
[1729547203093,0.76485215,67776.0,67775.0,0.18036387]
[1729547203339,0.80240196,67776.0,67775.0,0.18036387]
[1729547203550,0.80240044,67776.0,67775.0,0.18036387]
[1729547204615,0.65311977,67776.0,67775.0,0.18036387]
[1729547205057,0.48983675,67776.0,67775.0,0.18036387]
[1729547205274,0.8023802,67776.0,67775.0,0.18036387]
[1729547206651,0.7973802,67776.0,67775.0,0.18036387]
[1729547207127,0.7973646,67776.0,67775.0,0.18036387]
[1729547207356,0.64810572,67776.0,67775.0,0.18036387]
[1729547209452,0.75983658,67776.0,67775.0,0.18036387]
[1729547209986,0.65983658,67776.0,67775.0,0.18036387]
[1729547210644,0.64601495,67776.0,67775.0,0.18036387]
[1729547210873,0.6598331,67776.0,67775.0,0.18036387]
[1729547211286,0.65979084,67776.0,67775.0,0.18036387]
[1729547214831,0.65978652,67776.0,67775.0,0.18036387]
[1729547216889,0.54805566,67776.0,67775.0,0.18036387]
[1729547217760,0.42051166,67776.0,67775.0,0.18036387]
[1729547217984,0.55313364,67776.0,67775.0,0.18036387]
[1729547218212,0.42051219,67776.0,67775.0,0.18036387]
[1729547219105,0.42551219,67776.0,67775.0,0.18036387]
[1729547219316,0.55311453,67776.0,67775.0,0.18036387]
[1729547221133,0.53930017,67776.0,67775.0,0.18036387]
[1729547221351,0.55311251,67776.0,67775.0,0.18036387]
[1729547221796,0.42051017,67776.0,67775.0,0.18036387]
[1729547222232,0.42044294,67776.0,67775.0,0.18036387]
[1729547224652,0.4066306,67776.0,67775.0,0.18036387]
[1729547224871,0.4204415,67776.0,67775.0,0.18036387]
[1729547225097,0.42044163,67776.0,67775.0,0.18036387]
[1729547226185,0.42044174,67776.0,67775.0,0.18036387]
[1729547230833,0.42038133,67776.0,67775.0,0.18036387]
[1729547241814,0.42039481,67776.0,67775.0,0.18036387]
[1729547244030,0.42539481,67776.0,67775.0,0.18036387]
[1729547245104,0.42039481,67776.0,67775.0,0.18036387]
[1729547245322,0.42539481,67776.0,67775.0,0.18036387]
[1729547246970,0.42039481,67776.0,67775.0,0.18036387]
[1729547247188,0.40658367,67776.0,67775.0,0.18036387]
[1729547247417,0.39740202,67776.0,67775.0,0.18036387]
[1729547247635,0.38358367,67776.0,67775.0,0.18036387]
[1729547247846,0.3974061,67776.0,67775.0,0.18036387]
[1729547249436,0.39743091,67776.0,67775.0,0.18036387]
[1729547249729,0.38642796,67776.0,67775.0,0.18036387]
[1729547250599,0.37342796,67776.0,67775.0,0.18036387]
[1729547251032,0.38342796,67776.0,67775.0,0.18036387]
[1729547252099,0.36960553,67776.0,67775.0,0.18036387]
[1729547252314,0.38343176,67776.0,67775.0,0.18036387]
[1729547254458,0.22029735,67776.0,67775.0,0.18036387]
[1729547254720,0.38346081,67776.0,67775.0,0.18036387]
[1729547254916,0.38346066,67776.0,67775.0,0.18036387]
[1729547258106,0.011654,67776.0,67775.0,0.34491087]
[1729547258553,0.006654,67776.0,67775.0,0.34491087]
[1729547259200,0.006654,67776.0,67775.0,0.45664173]
[1729547259624,0.006654,67776.0,67775.0,0.45026234]
[1729547260053,0.001654,67776.0,67775.0,0.45026234]
[1729547260237,0.002654,67776.0,67775.0,0.45426234]
[1729547260462,0.002654,67776.0,67775.0,0.45226234]
[1729547261047,0.003654,67776.0,67775.0,0.5669932]
[1729547264463,0.003654,67776.0,67775.0,0.5719932]
[1729547265374,0.003654,67776.0,67775.0,0.5699932]
[1729547265839,0.003654,67776.0,67775.0,0.5719932]
[1729547267786,0.003654,67776.0,67775.0,0.57519929]
[1729547271778,0.003654,67776.0,67775.0,0.58486417]
[1729547272431,0.003654,67776.0,67775.0,0.68486417]
[1729547272935,0.003654,67776.0,67775.0,0.84382332]
[1729547273146,0.003654,67776.0,67775.0,0.84082332]
[1729547273368,0.002654,67776.0,67775.0,0.84082332]
[1729547274241,0.002654,67776.0,67775.0,0.83882332]
[1729547274464,0.003654,67776.0,67775.0,0.84082332]
[1729547274712,0.004654,67776.0,67775.0,0.95455418]
[1729547274928,0.003654,67776.0,67775.0,0.84082332]
[1729547275365,0.003654,67776.0,67775.0,0.95255418]
[1729547275782,0.002654,67776.0,67775.0,0.83882332]
[1729547276004,0.003654,67776.0,67775.0,0.96455418]
[1729547276224,0.004654,67776.0,67775.0,0.97855418]
[1729547281246,0.004654,67776.0,67775.0,0.98055418]
[1729547282888,0.004654,67776.0,67775.0,0.9708893]
[1729547283458,0.004654,67776.0,67775.0,0.9688893]
[1729547284755,0.001654,67781.0,67780.0,0.032]
[1729547284958,0.22289783,67781.0,67780.0,0.8915311]
[1729547285072,0.001654,67781.0,67780.0,0.8915311]
[1729547285275,0.001654,67781.0,67780.0,0.89466841]
[1729547286133,0.002654,67781.0,67780.0,0.90366841]
[1729547286720,0.001654,67781.0,67780.0,0.89466841]
[1729547286920,0.002654,67781.0,67780.0,0.90366841]
[1729547287166,0.002654,67781.0,67780.0,0.91766841]
[1729547287375,0.002654,67781.0,67780.0,0.90866841]
[1729547287588,0.001654,67781.0,67780.0,0.89466841]
[1729547287788,0.002654,67781.0,67780.0,0.90866841]
[1729547288016,0.001654,67781.0,67780.0,0.89466841]
[1729547288359,0.001654,67781.0,67780.0,0.90866841]
[1729547288797,0.001654,67781.0,67780.0,0.92266841]
[1729547289225,0.001654,67781.0,67780.0,0.90866841]
[1729547289641,0.001654,67781.0,67780.0,0.92266841]
[1729547290332,5.55163676,67782.0,67781.0,0.134]
[1729547290530,5.46311876,67782.0,67781.0,0.75578496]
[1729547290759,5.37598154,67782.0,67781.0,0.75178496]
[1729547290982,5.37598154,67782.0,67781.0,0.75578496]
[1729547291404,5.37598154,67782.0,67781.0,0.76978496]
[1729547292134,5.37698154,67782.0,67781.0,0.78378496]
[1729547292540,5.37698154,67782.0,67781.0,0.89551582]
[1729547292748,5.31796954,67782.0,67781.0,0.91851582]
[1729547292975,5.28846354,67782.0,67781.0,0.91851582]
[1729547293182,5.22945154,67782.0,67781.0,0.91851582]
[1729547293387,4.7778703,67782.0,67781.0,0.91851582]
[1729547294040,4.5997703,67782.0,67781.0,0.91851582]
[1729547294544,4.5797703,67782.0,67781.0,0.91851582]
[1729547294956,4.5492643,67782.0,67781.0,0.90451582]
[1729547295307,4.5502643,67782.0,67781.0,0.91851582]
[1729547295777,4.5492643,67782.0,67781.0,0.90451582]
[1729547295979,4.5502643,67782.0,67781.0,0.91851582]
[1729547296460,4.09868306,67782.0,67781.0,0.91851582]
[1729547296839,3.92164706,67782.0,67781.0,0.90451582]
[1729547297056,3.89214106,67782.0,67781.0,0.91851582]
[1729547297694,3.86263506,67782.0,67781.0,0.91851582]
[1729547298136,3.79558697,67782.0,67781.0,0.91851582]
[1729547299528,3.34400573,67782.0,67781.0,0.91851582]
[1729547299953,3.31500573,67782.0,67781.0,0.91851582]
[1729547300614,3.22648773,67782.0,67781.0,0.80678496]
[1729547300837,3.13796973,67782.0,67781.0,0.80678496]
[1729547301280,3.07946373,67782.0,67781.0,0.80678496]
[1729547301668,3.04995773,67782.0,67781.0,0.80678496]
[1729547303643,2.96143973,67782.0,67781.0,0.80678496]
[1729547303860,2.93193373,67782.0,67781.0,0.80678496]
[1729547304298,2.90242773,67782.0,67781.0,0.80678496]
[1729547304745,2.87342773,67782.0,67781.0,0.80678496]
[1729547305414,2.75540373,67782.0,67781.0,0.80678496]
[1729547305630,2.72589773,67782.0,67781.0,0.80678496]
[1729547305857,2.60787373,67782.0,67781.0,0.80678496]
[1729547306068,2.41471995,67782.0,67781.0,0.80678496]
[1729547306279,2.38571995,67782.0,67781.0,0.80678496]
[1729547306529,2.03802894,67782.0,67781.0,0.80678496]
[1729547306757,1.92761804,67782.0,67781.0,0.80678496]
[1729547306980,1.86860604,67782.0,67781.0,1.50678496]
[1729547307448,1.55715149,67782.0,67781.0,1.47878496]
[1729547307674,1.49813949,67782.0,67781.0,1.55891232]
[1729547307893,1.38162149,67782.0,67781.0,1.50678496]
[1729547308112,1.38162149,67782.0,67781.0,0.80678496]
[1729547308337,1.38162149,67782.0,67781.0,0.79278496]
[1729547308559,1.38162149,67782.0,67781.0,0.80678496]
[1729547308784,1.26359749,67782.0,67781.0,0.80678496]
[1729547308994,1.23409149,67782.0,67781.0,0.80678496]
[1729547309216,1.23409149,67782.0,67781.0,1.50678496]
[1729547309635,1.20458549,67782.0,67781.0,1.50761196]
[1729547310819,1.06774358,67782.0,67781.0,1.50761196]
[1729547311236,0.79633614,67782.0,67781.0,0.80761196]
[1729547311452,0.79633614,67782.0,67781.0,0.89579662]
[1729547311678,0.79633614,67782.0,67781.0,0.80761196]
[1729547312109,0.70932414,67782.0,67781.0,0.80761196]
[1729547312339,0.65031214,67782.0,67781.0,0.89579662]
[1729547312554,0.62080614,67782.0,67781.0,0.89579662]
[1729547312769,0.53228814,67782.0,67781.0,0.80761196]
[1729547313016,0.48782853,67782.0,67781.0,0.80761196]
[1729547313240,0.45832253,67782.0,67781.0,0.80761196]
[1729547313684,0.41281653,67782.0,67781.0,0.80761196]
[1729547313914,0.001654,67783.0,67782.0,0.478831]
[1729547314132,0.001654,67783.0,67782.0,0.62779015]
[1729547314366,0.001654,67791.0,67790.0,0.204514]
[1729547314575,0.001654,67791.0,67790.0,0.85043487]
[1729547314789,0.22124383,67806.0,67797.0,0.70146072]
[1729547315019,0.22124383,67806.0,67797.0,0.85041987]
[1729547315457,0.22124383,67806.0,67802.0,0.281488]
[1729547315678,0.22124383,67806.0,67802.0,0.73867801]
[1729547315915,0.32189783,67815.0,67814.0,0.032]
[1729547315916,0.22289783,67815.0,67814.0,0.032]
[1729547316142,0.22289783,67815.0,67814.0,0.33042115]
[1729547316610,0.001654,67815.0,67814.0,0.3334558]
[1729547317305,0.001654,67815.0,67814.0,0.3474558]
[1729547318032,0.001654,67815.0,67814.0,0.3614558]
[1729547319848,0.001654,67815.0,67814.0,0.4614558]
[1729547320774,0.001654,67815.0,67814.0,0.4594558]
[1729547321224,0.001654,67815.0,67814.0,0.4454558]
[1729547321436,0.001654,67815.0,67814.0,0.4594558]
[1729547321661,0.001654,67815.0,67814.0,0.5204928]
[1729547321877,0.001654,67815.0,67814.0,0.5064928]
[1729547322271,0.001654,67815.0,67814.0,0.5204928]
[1729547323222,0.22124383,67826.0,67824.0,0.17944]
[1729547323433,0.22124383,67826.0,67824.0,0.32839915]
[1729547323848,0.22124383,67826.0,67824.0,0.3314338]
[1729547323987,0.1715,67827.0,67824.0,0.45324428]
[1729547324231,0.1715,67827.0,67824.0,0.55324428]
[1729547324496,0.0921,67827.0,67824.0,0.56624428]
[1729547325082,0.0921,67827.0,67824.0,0.55324428]
[1729547325303,0.0921,67827.0,67826.0,0.179436]
[1729547325505,0.0921,67827.0,67826.0,0.34548896]
[1729547325719,0.0921,67827.0,67826.0,0.34848653]
[1729547326558,0.0921,67827.0,67826.0,0.36248653]
[1729547327392,0.0794,67831.0,67830.0,0.177427]
[1729547327602,0.0794,67831.0,67830.0,0.32638615]
[1729547327813,0.0794,67831.0,67830.0,0.4233406]
[1729547328030,0.1715,67831.0,67830.0,0.42633817]
[1729547328884,0.1715,67831.0,67830.0,0.42833817]
[1729547329098,0.1715,67831.0,67830.0,0.44233817]
[1729547329731,0.1715,67831.0,67830.0,0.45533817]
[1729547334345,0.0921,67831.0,67830.0,0.45533817]
[1729547334593,0.0921,67831.0,67830.0,0.44233817]
[1729547334811,0.001654,67834.0,67833.0,0.16242]
[1729547335036,0.001654,67834.0,67833.0,0.31337915]
[1729547335454,0.001654,67834.0,67833.0,0.34123275]
[1729547335876,0.001654,67834.0,67833.0,0.35423275]
[1729547336320,0.172608,67835.0,67834.0,0.159418]
[1729547336531,0.172608,67835.0,67834.0,0.31337715]
[1729547336782,0.172608,67835.0,67834.0,0.33047096]
[1729547336990,0.172608,67835.0,67834.0,0.33346853]
[1729547337441,0.001654,67837.0,67836.0,0.147414]
[1729547337891,0.001654,67837.0,67836.0,0.159414]
[1729547338125,0.001654,67837.0,67836.0,0.16241157]
[1729547338342,0.001654,67837.0,67836.0,0.26436602]
[1729547338563,0.001654,67837.0,67836.0,0.16741157]
[1729547339028,0.001654,67837.0,67836.0,0.17741157]
[1729547339463,0.001654,67837.0,67836.0,0.18641157]
[1729547340227,0.001654,67837.0,67836.0,0.33537072]
[1729547340453,0.001654,67837.0,67836.0,0.4571812]
[1729547347249,0.001654,67837.0,67836.0,0.03899757]
[1729547347250,0.28878486,67837.0,67836.0,0.03899757]
[1729547347671,0.28878486,67837.0,67836.0,0.03699757]
[1729547348091,0.28878486,67837.0,67836.0,0.03899757]
[1729547348704,0.28878486,67837.0,67836.0,0.03699757]
[1729547348917,0.28878486,67837.0,67836.0,0.03899757]
[1729547349132,0.28878486,67837.0,67836.0,0.02699757]
[1729547349431,0.28878486,67837.0,67825.0,0.000826]
[1729547349432,0.023,67829.0,67812.0,0.059042]
[1729547349781,0.023,67829.0,67821.0,0.22124383]
[1729547349782,0.147444,67822.0,67821.0,0.22124383]
[1729547349785,0.147444,67822.0,67814.0,0.22124383]
[1729547349786,0.023,67822.0,67814.0,0.22124383]
[1729547349957,0.023,67822.0,67808.0,0.002]
[1729547349958,0.147464,67814.0,67808.0,0.002]
[1729547350158,0.11173086,67809.0,67808.0,0.002]
[1729547350368,0.18743086,67809.0,67808.0,0.002]
[1729547364058,0.0757,67809.0,67808.0,0.002]
[1729547365847,0.0757,67809.0,67808.0,0.002826]
[1729547370395,0.01382359,67812.0,67808.0,0.002826]
[1729547370622,0.11173086,67809.0,67808.0,0.002826]
[1729547370834,0.11173086,67809.0,67808.0,0.003826]
[1729547371281,0.11173086,67809.0,67808.0,0.002826]
[1729547371617,0.11173086,67809.0,67808.0,0.003826]
[1729547373577,0.11173086,67809.0,67808.0,0.004826]
[1729547374264,0.11173086,67809.0,67808.0,0.0074796]